[Event "Rapide Futuroscope"]
[Site "Futuroscope, France"]
[Date "2019.12.01"]
[Round "2.3"]
[White "SOCHACKI, Christophe"]
[Black "Neau, Julien"]
[Result "1-0"]
[TimeControl "15' + 3''"]
[WhiteTitle "IM"]
[WhiteFideId "662569"]
[WhiteElo "2492"]
[BlackElo "1932"]

1. b4 {[%clk 00:14:59]} {[%emt 00:00:06]} Nf6 {[%clk 00:14:50]} {[%emt
00:00:16]} 2. Bb2 {[%clk 00:15:00]} {[%emt 00:00:04]} g6 {[%clk 00:14:52]} 3.
c4 {[%clk 00:14:27]} {[%emt 00:00:36]} Bg7 {[%clk 00:14:47]} {[%emt 00:00:08]}
4. Nf3 {[%clk 00:14:28]} {[%emt 00:00:02]} O-O {[%clk 00:13:46]} {[%emt
00:01:04]} 5. g3 {[%clk 00:13:50]} {[%emt 00:00:40]} b6 {[%clk 00:12:45]}
{[%emt 00:01:05]} 6. Bg2 {[%clk 00:13:50]} {[%emt 00:00:03]} Bb7 {[%clk
00:12:46]} {[%emt 00:00:02]} 7. O-O {[%clk 00:13:35]} {[%emt 00:00:17]} c5
{[%clk 00:10:15]} {[%emt 00:02:34]} 8. bxc5 {[%clk 00:11:33]} {[%emt 00:02:06]}
bxc5 {[%clk 00:10:13]} {[%emt 00:00:05]} 9. d3 {[%clk 00:11:34]} {[%emt
00:00:02]} d6 {[%clk 00:08:57]} {[%emt 00:01:19]} 10. Nc3 {[%clk 00:11:16]}
{[%emt 00:00:20]} Nc6 {[%clk 00:08:42]} {[%emt 00:00:18]} 11. Rb1 {[%clk
00:10:37]} {[%emt 00:00:42]} Qa5 {[%clk 00:07:08]} {[%emt 00:01:37]} 12. Nd5
{[%clk 00:10:01]} {[%emt 00:00:39]} Nxd5 {[%clk 00:05:11]} {[%emt 00:02:00]} 13.
Bxg7 {[%clk 00:09:53]} {[%emt 00:00:10]} Kxg7 {[%clk 00:04:30]} {[%emt
00:00:44]} 14. Rxb7 {[%clk 00:09:40]} {[%emt 00:00:17]} Ndb4 {[%clk 00:03:31]}
{[%emt 00:01:01]} 15. Qa1+ {[%clk 00:09:16]} {[%emt 00:00:27]} Kg8 {[%clk
00:03:17]} {[%emt 00:00:18]} 16. a3 {[%clk 00:09:12]} {[%emt 00:00:07]} Nc2
{[%clk 00:02:14]} {[%emt 00:01:06]} 17. Qb2 {[%clk 00:08:33]} {[%emt 00:00:41]}
Qa6 {[%clk 00:00:44]} {[%emt 00:01:32]} 18. e3 {[%clk 00:07:30]} {[%emt
00:01:06]} Nxa3 {[%clk 00:00:21]} {[%emt 00:00:27]} 19. Ra1 {[%clk 00:07:26]}
{[%emt 00:00:06]} Rab8 {[%clk 00:00:09]} {[%emt 00:00:15]} 20. Rxb8 {[%clk
00:06:47]} {[%emt 00:00:42]} Rxb8 {[%clk 00:00:11]} {[%emt 00:00:02]} 21. Qa2
{[%clk 00:06:48]} {[%emt 00:00:02]} Qa4 {[%clk 00:00:06]} {[%emt 00:00:08]} 22.
Nd2 {[%clk 00:06:16]} {[%emt 00:00:35]} Qc2 {[%clk 00:00:07]} {[%emt 00:00:01]}
23. Qxa3 {[%clk 00:06:17]} {[%emt 00:00:02]} Qxd2 {[%clk 00:00:09]} {[%emt
00:00:02]} 24. Bxc6 {[%clk 00:06:18]} {[%emt 00:00:02]} Rb2 {[%clk 00:00:09]}
{[%emt 00:00:03]} 25. Rf1 {[%clk 00:06:11]} {[%emt 00:00:09]} Ra2 {[%clk
00:00:05]} {[%emt 00:00:07]} 26. Qb3 {[%clk 00:06:13]} {[%emt 00:00:01]} Rb2
{[%clk 00:00:07]} {[%emt 00:00:01]} 27. Qd1 {[%clk 00:06:11]} {[%emt 00:00:03]}
Qc3 {[%clk 00:00:06]} {[%emt 00:00:06]} 28. Be4 {[%clk 00:06:07]} {[%emt
00:00:06]} e6 {[%clk 00:00:06]} {[%emt 00:00:03]} 29. Qa4 {[%clk 00:06:06]}
{[%emt 00:00:04]} Kg7 {[%clk 00:00:04]} {[%emt 00:00:05]} 30. Qxa7 {[%clk
00:06:04]} {[%emt 00:00:05]} Rd2 {[%clk 00:00:05]} {[%emt 00:00:02]} 31. h4
{[%clk 00:05:37]} {[%emt 00:00:30]} Qe5 {[%clk 00:00:07]} {[%emt 00:00:02]} 32.
Qa1 {[%clk 00:04:32]} {[%emt 00:01:07]} Qb2 {[%clk 00:00:06]} {[%emt 00:00:04]}
33. Qxb2+ {[%clk 00:04:33]} {[%emt 00:00:03]} Rxb2 {[%clk 00:00:08]} {[%emt
00:00:01]} 34. Rd1 {[%clk 00:04:30]} {[%emt 00:00:05]} Kf6 {[%clk 00:00:09]}
{[%emt 00:00:02]} 35. Kg2 {[%clk 00:04:27]} {[%emt 00:00:06]} Ke5 {[%clk
00:00:10]} {[%emt 00:00:03]} 36. Bf3 {[%clk 00:03:55]} {[%emt 00:00:34]} d5
{[%clk 00:00:11]} {[%emt 00:00:03]} 37. cxd5 {[%clk 00:03:55]} {[%emt
00:00:04]} exd5 {[%clk 00:00:13]} {[%emt 00:00:01]} 38. d4+ {[%clk 00:03:56]}
{[%emt 00:00:02]} cxd4 {[%emt 00:00:03]} 39. Rxd4 {[%clk 00:03:57]} Rb5 {[%clk
00:00:14]} {[%emt 00:00:02]} 40. Kf1 {[%clk 00:03:45]} {[%emt 00:00:15]} h6
{[%clk 00:00:15]} {[%emt 00:00:03]} 41. Ke2 {[%clk 00:03:45]} {[%emt 00:00:02]}
f6 {[%clk 00:00:16]} {[%emt 00:00:02]} 42. Kd3 {[%clk 00:03:41]} {[%emt
00:00:06]} Rb3+ {[%clk 00:00:16]} {[%emt 00:00:04]} 43. Kc2 {[%clk 00:03:42]}
{[%emt 00:00:02]} Rb5 {[%clk 00:00:18]} {[%emt 00:00:01]} 44. h5 {[%clk
00:03:33]} {[%emt 00:00:12]} gxh5 {[%clk 00:00:17]} {[%emt 00:00:04]} 45. Bxh5
{[%clk 00:03:32]} {[%emt 00:00:04]} Ra5 {[%clk 00:00:18]} {[%emt 00:00:02]} 46.
f4+ {[%clk 00:03:06]} {[%emt 00:00:28]} Kf5 {[%clk 00:00:12]} {[%emt 00:00:09]}
47. Bf3 {[%clk 00:02:59]} {[%emt 00:00:09]} Ke6 {[%clk 00:00:11]} {[%emt
00:00:04]} 48. Kb3 {[%clk 00:02:48]} {[%emt 00:00:14]} Rb5+ {[%clk 00:00:10]}
{[%emt 00:00:04]} 49. Ka4 {[%clk 00:02:48]} {[%emt 00:00:03]} Rc5 {[%clk
00:00:09]} {[%emt 00:00:05]} 50. Kb4 {[%clk 00:02:47]} {[%emt 00:00:03]} Rc1
{[%clk 00:00:09]} {[%emt 00:00:03]} 51. Bxd5+ {[%clk 00:02:45]} {[%emt
00:00:05]} Kf5 {[%clk 00:00:06]} {[%emt 00:00:07]} 52. Bf3 {[%clk 00:02:30]}
{[%emt 00:00:17]} Rb1+ {[%clk 00:00:07]} {[%emt 00:00:03]} 53. Kc5 {[%clk
00:02:30]} {[%emt 00:00:02]} Ke6 {[%clk 00:00:05]} {[%emt 00:00:06]} 54. Bg4+
{[%clk 00:02:27]} {[%emt 00:00:06]} Ke7 {[%clk 00:00:05]} {[%emt 00:00:04]} 55.
Rd7+ {[%clk 00:02:25]} {[%emt 00:00:04]} Ke8 {[%clk 00:00:06]} {[%emt
00:00:02]} 56. Rd3 {[%clk 00:01:53]} {[%emt 00:00:34]} Ra1 {[%clk 00:00:05]}
{[%emt 00:00:04]} 57. Kd6 {[%clk 00:01:51]} {[%emt 00:00:05]} Ra5 {[%clk
00:00:05]} {[%emt 00:00:04]} 58. Ke6 {[%clk 00:01:48]} {[%emt 00:00:05]} Ra6+
{[%clk 00:00:04]} {[%emt 00:00:04]} 59. Rd6 {[%clk 00:01:47]} {[%emt 00:00:03]}
Ra3 {[%clk 00:00:06]} {[%emt 00:00:02]} 60. Kxf6 {[%clk 00:01:43]} {[%emt
00:00:07]} Rxe3 {[%clk 00:00:06]} {[%emt 00:00:03]} 61. Bh5+ {[%clk 00:01:44]}
{[%emt 00:00:01]} 1-0

[Event "Rapide Futuroscope"]
[Site "Futuroscope, France"]
[Date "2019.12.01"]
[Round "2.2"]
[White "Selebran, Henri"]
[Black "EDOUARD, Romain"]
[Result "0-1"]
[TimeControl "15' + 3''"]
[BlackTitle "GM"]
[BlackFideId "633429"]
[WhiteElo "2104"]
[BlackElo "2655"]

1. c4 {[%clk 00:15:04]} e5 {[%clk 00:15:05]} {[%emt 00:00:02]} 2. g3 {[%clk
00:15:05]} {[%emt 00:00:02]} h5 {[%clk 00:15:05]} {[%emt 00:00:02]} 3. h4
{[%clk 00:14:44]} {[%emt 00:00:23]} Nc6 {[%clk 00:15:06]} {[%emt 00:00:03]} 4.
Bg2 {[%clk 00:14:40]} {[%emt 00:00:07]} Bc5 {[%clk 00:15:07]} {[%emt 00:00:02]}
5. Nc3 {[%clk 00:14:37]} {[%emt 00:00:05]} d6 {[%clk 00:15:03]} {[%emt
00:00:08]} 6. e3 {[%clk 00:14:28]} {[%emt 00:00:11]} a6 {[%clk 00:15:03]}
{[%emt 00:00:04]} 7. Nge2 {[%clk 00:14:15]} {[%emt 00:00:15]} Ba7 {[%clk
00:15:02]} {[%emt 00:00:05]} 8. Rb1 {[%clk 00:12:26]} {[%emt 00:01:52]} Nh6
{[%clk 00:14:40]} {[%emt 00:00:24]} 9. b4 {[%clk 00:11:32]} {[%emt 00:00:57]}
Rb8 {[%clk 00:13:57]} {[%emt 00:00:47]} 10. d4 {[%clk 00:10:33]} {[%emt
00:01:01]} Bf5 {[%clk 00:13:42]} {[%emt 00:00:19]} 11. Rb3 {[%clk 00:09:44]}
{[%emt 00:00:52]} Bd7 {[%clk 00:13:19]} {[%emt 00:00:26]} 12. c5 {[%clk
00:07:42]} {[%emt 00:02:04]} O-O {[%clk 00:11:24]} {[%emt 00:01:59]} 13. O-O
{[%clk 00:06:57]} {[%emt 00:00:47]} Ng4 {[%clk 00:11:07]} {[%emt 00:00:19]} 14.
b5 {[%clk 00:06:21]} {[%emt 00:00:40]} axb5 {[%clk 00:10:42]} {[%emt 00:00:29]}
15. Nxb5 {[%clk 00:05:49]} {[%emt 00:00:34]} Ra8 {[%clk 00:10:16]} {[%emt
00:00:30]} 16. Nxa7 {[%clk 00:05:01]} {[%emt 00:00:51]} Rxa7 {[%clk 00:10:16]}
{[%emt 00:00:03]} 17. cxd6 {[%clk 00:04:43]} {[%emt 00:00:20]} cxd6 {[%clk
00:10:17]} {[%emt 00:00:03]} 18. dxe5 {[%clk 00:04:14]} {[%emt 00:00:32]} dxe5
{[%clk 00:10:18]} {[%emt 00:00:02]} 19. Ba3 {[%clk 00:04:03]} {[%emt 00:00:14]}
Re8 {[%clk 00:10:16]} {[%emt 00:00:06]} 20. Bc5 {[%clk 00:03:45]} {[%emt
00:00:21]} Rxa2 {[%clk 00:09:51]} {[%emt 00:00:28]} 21. Rxb7 {[%clk 00:03:37]}
{[%emt 00:00:11]} Bc8 {[%clk 00:09:37]} {[%emt 00:00:17]} 22. Qb3 {[%clk
00:02:41]} {[%emt 00:00:59]} Bxb7 {[%clk 00:08:33]} {[%emt 00:01:08]} 23. Qxa2
{[%clk 00:02:40]} {[%emt 00:00:03]} e4 {[%clk 00:07:59]} {[%emt 00:00:37]} 24.
Rb1 {[%clk 00:02:08]} {[%emt 00:00:35]} Ba8 {[%clk 00:08:01]} {[%emt 00:00:02]}
25. Nd4 {[%clk 00:02:01]} {[%emt 00:00:09]} Nce5 {[%clk 00:08:00]} {[%emt
00:00:04]} 26. Bf1 {[%clk 00:00:51]} {[%emt 00:01:13]} Nd3 {[%clk 00:07:50]}
{[%emt 00:00:14]} 27. Bxd3 {[%clk 00:00:31]} {[%emt 00:00:22]} exd3 {[%clk
00:07:51]} {[%emt 00:00:02]} 28. Qd2 {[%clk 00:00:12]} {[%emt 00:00:21]} Qd5
{[%clk 00:07:48]} {[%emt 00:00:06]} 0-1

[Event "Rapide Futuroscope"]
[Site "Futuroscope, France"]
[Date "2019.12.01"]
[Round "2.4"]
[White "Tranchant, Sebastien"]
[Black "Gaubert, Cedric"]
[Result "1-0"]
[TimeControl "15' + 3''"]
[WhiteElo "2304"]
[BlackElo "1921"]

1. d4 {[%clk 00:15:04]} {[%emt 00:00:58]} d5 {[%clk 00:15:03]} {[%emt
00:00:03]} 2. c4 {[%clk 00:15:05]} {[%emt 00:00:03]} c6 {[%clk 00:15:04]} 3.
Nf3 {[%clk 00:15:01]} {[%emt 00:00:07]} Nf6 {[%clk 00:14:59]} {[%emt 00:00:08]}
4. Qc2 {[%clk 00:15:01]} {[%emt 00:00:04]} g6 {[%clk 00:14:09]} {[%emt
00:00:52]} 5. Bf4 {[%clk 00:14:44]} {[%emt 00:00:19]} Bg7 {[%clk 00:13:38]}
{[%emt 00:00:34]} 6. e3 {[%clk 00:14:17]} {[%emt 00:00:30]} O-O {[%clk
00:13:13]} {[%emt 00:00:28]} 7. Bd3 {[%clk 00:14:03]} {[%emt 00:00:17]} Nbd7
{[%clk 00:11:57]} {[%emt 00:01:20]} 8. O-O {[%clk 00:13:34]} {[%emt 00:00:32]}
Nh5 {[%clk 00:11:33]} {[%emt 00:00:26]} 9. Bg5 {[%clk 00:13:34]} {[%emt
00:00:03]} h6 {[%clk 00:11:15]} {[%emt 00:00:22]} 10. Bh4 {[%clk 00:13:36]} g5
{[%clk 00:10:13]} {[%emt 00:01:05]} 11. Bg3 {[%clk 00:13:38]} {[%emt 00:00:02]}
Nxg3 {[%clk 00:10:14]} {[%emt 00:00:02]} 12. hxg3 {[%clk 00:13:38]} {[%emt
00:00:02]} e6 {[%clk 00:10:15]} {[%emt 00:00:03]} 13. Nc3 {[%clk 00:12:58]}
{[%emt 00:00:42]} Nb6 {[%clk 00:09:25]} {[%emt 00:00:53]} 14. cxd5 {[%clk
00:11:27]} {[%emt 00:01:34]} exd5 {[%clk 00:09:12]} {[%emt 00:00:16]} 15. b4
{[%clk 00:10:59]} {[%emt 00:00:30]} a6 {[%clk 00:08:22]} {[%emt 00:00:53]} 16.
a4 {[%clk 00:10:41]} {[%emt 00:00:21]} Be6 {[%clk 00:07:25]} {[%emt 00:00:59]}
17. b5 {[%clk 00:08:55]} {[%emt 00:01:50]} axb5 {[%clk 00:06:38]} {[%emt
00:00:50]} 18. axb5 {[%clk 00:08:57]} {[%emt 00:00:01]} Rxa1 {[%clk 00:06:39]}
{[%emt 00:00:01]} 19. Rxa1 {[%clk 00:08:59]} c5 {[%clk 00:06:40]} {[%emt
00:00:03]} 20. dxc5 {[%clk 00:08:36]} {[%emt 00:00:26]} Nd7 {[%clk 00:06:24]}
{[%emt 00:00:18]} 21. c6 {[%clk 00:07:05]} {[%emt 00:01:35]} bxc6 {[%clk
00:05:36]} {[%emt 00:00:52]} 22. bxc6 {[%clk 00:07:06]} {[%emt 00:00:02]} Nb8
{[%clk 00:05:37]} {[%emt 00:00:01]} 23. Rd1 {[%clk 00:02:25]} {[%emt 00:04:43]}
Nxc6 {[%clk 00:03:31]} {[%emt 00:02:10]} 24. Bf1 {[%clk 00:02:27]} {[%emt
00:00:01]} Qa5 {[%clk 00:03:18]} {[%emt 00:00:16]} 25. Nb5 {[%clk 00:02:13]}
{[%emt 00:00:17]} Rc8 {[%clk 00:03:02]} {[%emt 00:00:19]} 26. Nd6 {[%clk
00:01:37]} {[%emt 00:00:39]} Nd4 {[%clk 00:02:24]} {[%emt 00:00:42]} 27. Qd3
{[%clk 00:01:22]} {[%emt 00:00:17]} Nxf3+ 28. gxf3 {[%clk 00:01:25]} Rb8 {[%clk
00:02:16]} {[%emt 00:00:11]} 29. Nf5 {[%clk 00:01:23]} {[%emt 00:00:05]} Bxf5
{[%clk 00:01:38]} {[%emt 00:00:42]} 30. Qxf5 {[%clk 00:01:25]} Rd8 {[%clk
00:01:40]} {[%emt 00:00:01]} 31. f4 {[%clk 00:01:15]} {[%emt 00:00:14]} gxf4
{[%clk 00:01:33]} {[%emt 00:00:10]} 32. Qxf4 {[%clk 00:01:14]} {[%emt
00:00:04]} Qb6 {[%clk 00:01:22]} {[%emt 00:00:13]} 33. Rc1 {[%clk 00:00:38]}
{[%emt 00:00:40]} Qd6 {[%clk 00:01:07]} {[%emt 00:00:18]} 34. Qf3 {[%clk
00:00:31]} {[%emt 00:00:10]} Qf6 {[%clk 00:00:51]} {[%emt 00:00:18]} 35. Qe2
{[%clk 00:00:27]} {[%emt 00:00:08]} Qe7 {[%clk 00:00:36]} {[%emt 00:00:17]} 36.
Qf3 {[%clk 00:00:22]} {[%emt 00:00:08]} Qf6 {[%clk 00:00:37]} {[%emt 00:00:02]}
37. Qe2 {[%clk 00:00:24]} {[%emt 00:00:01]} Qe7 {[%clk 00:00:39]} 38. Qg4
{[%clk 00:00:24]} {[%emt 00:00:03]} Qe6 {[%clk 00:00:25]} {[%emt 00:00:17]} 39.
Qh4 {[%clk 00:00:21]} {[%emt 00:00:06]} Qf6 {[%clk 00:00:23]} {[%emt 00:00:05]}
40. Qh5 {[%clk 00:00:19]} {[%emt 00:00:04]} Qg6 {[%clk 00:00:20]} {[%emt
00:00:06]} 41. Qf3 {[%clk 00:00:18]} {[%emt 00:00:04]} Qf6 {[%clk 00:00:19]}
{[%emt 00:00:03]} 42. Qe2 {[%clk 00:00:20]} {[%emt 00:00:02]} Qe7 {[%clk
00:00:20]} {[%emt 00:00:02]} 43. Qd3 {[%clk 00:00:20]} {[%emt 00:00:02]} Qd7
{[%clk 00:00:11]} {[%emt 00:00:12]} 44. Bg2 {[%clk 00:00:14]} {[%emt 00:00:10]}
d4 {[%clk 00:00:09]} {[%emt 00:00:05]} 45. exd4 {[%clk 00:00:15]} Qxd4 {[%clk
00:00:09]} {[%emt 00:00:02]} 46. Qf5 {[%clk 00:00:16]} {[%emt 00:00:03]} Qd7
{[%clk 00:00:10]} {[%emt 00:00:02]} 47. Qf4 {[%clk 00:00:17]} {[%emt 00:00:02]}
Qd6 {[%clk 00:00:12]} {[%emt 00:00:02]} 48. Qf3 {[%clk 00:00:18]} {[%emt
00:00:02]} Qf6 {[%clk 00:00:11]} {[%emt 00:00:03]} 49. Qe3 {[%clk 00:00:19]}
{[%emt 00:00:03]} Qe5 {[%clk 00:00:11]} {[%emt 00:00:03]} 50. Qb6 {[%clk
00:00:18]} {[%emt 00:00:03]} Qd6 {[%clk 00:00:10]} {[%emt 00:00:04]} 51. Rc6
{[%clk 00:00:15]} {[%emt 00:00:06]} Qd1+ {[%clk 00:00:12]} {[%emt 00:00:01]} 52.
Kh2 {[%clk 00:00:18]} Qh5+ {[%clk 00:00:14]} {[%emt 00:00:02]} 53. Bh3 {[%clk
00:00:19]} {[%emt 00:00:02]} Rf8 {[%clk 00:00:14]} {[%emt 00:00:03]} 54. Qe3
{[%clk 00:00:18]} {[%emt 00:00:03]} Qg5 {[%clk 00:00:14]} {[%emt 00:00:03]} 55.
Qe2 {[%clk 00:00:20]} {[%emt 00:00:02]} Qd8 {[%clk 00:00:14]} {[%emt 00:00:02]}
56. Bg2 {[%clk 00:00:20]} {[%emt 00:00:03]} Qd4 {[%clk 00:00:15]} {[%emt
00:00:02]} 57. Rc4 {[%clk 00:00:22]} {[%emt 00:00:02]} Qf6 {[%clk 00:00:16]}
{[%emt 00:00:01]} 58. Rf4 {[%clk 00:00:24]} {[%emt 00:00:01]} Qd6 {[%clk
00:00:17]} {[%emt 00:00:02]} 59. Qe4 {[%clk 00:00:24]} {[%emt 00:00:03]} Qe6
{[%clk 00:00:17]} {[%emt 00:00:04]} 60. Qd3 {[%clk 00:00:25]} {[%emt 00:00:02]}
Qe7 {[%clk 00:00:15]} {[%emt 00:00:04]} 61. Bd5 {[%clk 00:00:27]} {[%emt
00:00:01]} 1-0

[ePGN "0.1;DGT LiveChess/2.2.5"]

[Event "Rapide Futuroscope"]
[Site "Futuroscope, France"]
[Date "2019.12.01"]
[Round "3.1"]
[White "Fournier, Loic"]
[Black "Lagarde, Maxime"]
[Result "0-1"]
[TimeControl "15' + 3''"]
[WhiteElo "2150"]
[BlackElo "2657"]

1. d4 {[%clk 00:15:05]} f5 {[%clk 00:15:04]} {[%emt 00:00:02]} 2. Nf3 {[%clk
00:15:07]} Nf6 {[%clk 00:15:06]} {[%emt 00:00:02]} 3. g3 {[%clk 00:15:10]}
{[%emt 00:00:01]} g6 {[%clk 00:15:09]} {[%emt 00:00:02]} 4. Bg2 {[%clk
00:15:12]} Bg7 {[%clk 00:15:11]} 5. O-O {[%clk 00:15:13]} {[%emt 00:00:02]} O-O
{[%clk 00:15:12]} {[%emt 00:00:01]} 6. c4 {[%clk 00:15:16]} {[%emt 00:00:01]}
d6 {[%clk 00:15:14]} {[%emt 00:00:02]} 7. Nc3 {[%clk 00:15:18]} Nc6 {[%clk
00:15:16]} 8. Re1 {[%clk 00:15:13]} {[%emt 00:00:08]} e5 {[%clk 00:15:12]}
{[%emt 00:00:07]} 9. e3 {[%clk 00:14:54]} {[%emt 00:00:21]} e4 {[%clk
00:14:58]} {[%emt 00:00:17]} 10. Nd2 {[%clk 00:14:56]} {[%emt 00:00:01]} Nb4
{[%clk 00:14:32]} {[%emt 00:00:29]} 11. f3 {[%clk 00:14:23]} {[%emt 00:00:36]}
Nd3 {[%clk 00:14:17]} {[%emt 00:00:17]} 12. Re2 {[%clk 00:14:02]} {[%emt
00:00:23]} Nxc1 {[%clk 00:13:37]} {[%emt 00:00:44]} 13. Rxc1 {[%clk 00:14:00]}
{[%emt 00:00:05]} c6 {[%clk 00:13:26]} {[%emt 00:00:13]} 14. fxe4 {[%clk
00:13:36]} {[%emt 00:00:28]} fxe4 {[%clk 00:13:02]} {[%emt 00:00:27]} 15. Qb3
{[%clk 00:13:33]} {[%emt 00:00:05]} Qe7 {[%clk 00:11:36]} {[%emt 00:01:29]} 16.
Ncxe4 {[%clk 00:11:36]} {[%emt 00:01:59]} Nxe4 {[%clk 00:11:35]} {[%emt
00:00:04]} 17. Nxe4 {[%clk 00:11:23]} {[%emt 00:00:16]} Bf5 {[%clk 00:11:24]}
{[%emt 00:00:14]} 18. Nc3 {[%clk 00:09:54]} {[%emt 00:01:31]} Bg4 {[%clk
00:10:06]} {[%emt 00:01:22]} 19. Ree1 {[%clk 00:09:34]} {[%emt 00:00:23]} Rf7
{[%clk 00:09:58]} {[%emt 00:00:11]} 20. Ne4 {[%clk 00:08:32]} {[%emt 00:01:05]}
Raf8 {[%clk 00:07:59]} {[%emt 00:02:02]} 21. Rf1 {[%clk 00:07:20]} {[%emt
00:01:15]} Bh6 {[%clk 00:05:26]} {[%emt 00:02:36]} 22. Rxf7 {[%clk 00:06:57]}
{[%emt 00:00:26]} Rxf7 {[%clk 00:05:25]} {[%emt 00:00:04]} 23. Rf1 {[%clk
00:06:29]} {[%emt 00:00:31]} Bf5 {[%clk 00:04:52]} {[%emt 00:00:37]} 24. c5
{[%clk 00:03:30]} {[%emt 00:03:02]} d5 {[%clk 00:04:53]} {[%emt 00:00:02]} 25.
Nd6 {[%clk 00:03:16]} {[%emt 00:00:17]} Qxe3+ {[%clk 00:04:54]} {[%emt
00:00:03]} 26. Kh1 {[%clk 00:02:56]} {[%emt 00:00:22]} Qxb3 {[%clk 00:04:51]}
{[%emt 00:00:06]} 27. axb3 {[%clk 00:02:58]} Re7 {[%clk 00:04:18]} {[%emt
00:00:35]} 28. Nxf5 {[%clk 00:01:56]} {[%emt 00:01:06]} gxf5 {[%clk 00:04:20]}
{[%emt 00:00:01]} 29. Bh3 {[%clk 00:01:53]} {[%emt 00:00:06]} Bg7 {[%clk
00:02:39]} {[%emt 00:01:44]} 30. Rd1 {[%clk 00:01:17]} {[%emt 00:00:39]} Re3
{[%clk 00:02:22]} {[%emt 00:00:20]} 31. Bxf5 {[%clk 00:01:07]} {[%emt
00:00:13]} Rxb3 {[%clk 00:02:23]} {[%emt 00:00:03]} 32. Be6+ {[%clk 00:00:51]}
{[%emt 00:00:18]} Kh8 {[%clk 00:01:47]} {[%emt 00:00:39]} 33. Bc8 {[%clk
00:00:47]} {[%emt 00:00:07]} Rxb2 {[%clk 00:01:37]} {[%emt 00:00:13]} 34. Re1
{[%clk 00:00:50]} Bxd4 {[%clk 00:01:37]} {[%emt 00:00:03]} 35. Re8+ {[%clk
00:00:52]} Kg7 {[%clk 00:01:39]} {[%emt 00:00:01]} 36. Re7+ {[%clk 00:00:53]}
{[%emt 00:00:02]} Kf6 {[%clk 00:01:27]} {[%emt 00:00:15]} 37. Rxb7 {[%clk
00:00:44]} {[%emt 00:00:13]} Rxb7 {[%clk 00:00:41]} {[%emt 00:00:48]} 38. Bxb7
{[%clk 00:00:46]} {[%emt 00:00:01]} Bxc5 {[%clk 00:00:42]} {[%emt 00:00:02]} 39.
Bxc6 {[%clk 00:00:48]} {[%emt 00:00:01]} Ke5 {[%clk 00:00:41]} {[%emt
00:00:04]} 40. Kg2 {[%clk 00:00:50]} Kd4 {[%clk 00:00:41]} {[%emt 00:00:02]} 41.
g4 {[%clk 00:00:48]} {[%emt 00:00:06]} Kc4 {[%clk 00:00:42]} {[%emt 00:00:02]}
42. h4 {[%clk 00:00:47]} {[%emt 00:00:04]} d4 {[%clk 00:00:43]} {[%emt
00:00:02]} 43. Kf3 {[%clk 00:00:47]} {[%emt 00:00:03]} d3 {[%clk 00:00:39]}
{[%emt 00:00:07]} 44. Be4 {[%clk 00:00:34]} {[%emt 00:00:15]} h6 {[%clk
00:00:41]} {[%emt 00:00:01]} 45. Bh7 {[%clk 00:00:28]} {[%emt 00:00:09]} Kc3
{[%clk 00:00:33]} {[%emt 00:00:11]} 46. g5 {[%clk 00:00:29]} {[%emt 00:00:03]}
hxg5 {[%clk 00:00:35]} {[%emt 00:00:01]} 47. hxg5 {[%clk 00:00:31]} a5 {[%clk
00:00:33]} {[%emt 00:00:04]} 48. Bg8 {[%clk 00:00:20]} {[%emt 00:00:14]} d2
{[%clk 00:00:18]} {[%emt 00:00:18]} 49. Ke2 {[%clk 00:00:21]} {[%emt 00:00:02]}
Kc2 {[%clk 00:00:20]} 50. Bb3+ {[%clk 00:00:17]} {[%emt 00:00:08]} Kxb3 {[%clk
00:00:22]} {[%emt 00:00:01]} 51. Kxd2 {[%clk 00:00:20]} Bd4 {[%clk 00:00:23]}
{[%emt 00:00:02]} 0-1